fUSD/lending_fUSD_20260122
["ID","MTS","AMOUNT","RATE_DAILY","PERIOD"]
[403026299,1769081314710,1913.03570256,0.000139,2]
[403026300,1769081315151,3003.95208983,0.000139,2]
[403026301,1769081315177,370.86964885,0.000139,2]
[403026302,1769081315853,5048.53148624,0.000139,2]
[403026303,1769081316785,4580.59886491,0.000139,2]
[403026304,1769081316810,2250.24273509,0.000139,2]
[403026344,1769081432180,-594.61795665,0.00016324,2]
[403026346,1769081432191,-271.414428,0.00016324,2]
[403026348,1769081432202,-955.14761535,0.00016324,2]
[403026350,1769081432211,-1200.0,0.00016695,2]
[403026352,1769081432220,-300.0,0.00016695,2]
[403026354,1769081432229,-300.0,0.00016695,2]
[403026356,1769081432238,-9070.59538634,0.00016696,2]
[403026358,1769081432247,-202.55257862,0.00016696,2]
[403026360,1769081432256,-150.0,0.00016699,2]
[403026362,1769081432265,-248.0,0.00016699,2]
[403026364,1769081432274,-6281.06706656,0.000167,2]
[403026367,1769081432285,-66453.80256683,0.000167,2]
[403026376,1769081432360,-501.87734056,0.00016699,2]
[403026378,1769081432369,-449.22261227,0.00016699,2]
[403026380,1769081432380,-50.77738773,0.00016699,2]
[403026382,1769081432389,-500.0,0.00016699,2]
[403026384,1769081432398,-260.22021217,0.00016699,2]
[403026386,1769081432409,-239.77978783,0.00016699,2]
[403026388,1769081432418,-500.0,0.00016699,2]
[403026389,1769081432427,-328.23011703,0.000167,2]
[403026390,1769081432437,-310.4799,0.000167,2]
[403026391,1769081432448,-462.1300956,0.000167,2]
[403026392,1769081432458,-1075.43,0.000167,2]
[403026393,1769081432469,-815.82400348,0.000167,2]
[403026394,1769081432479,-1186.5106101,0.000167,2]
[403026395,1769081432565,-500.0,0.00016699,2]
[403026396,1769081432574,-199.36702806,0.00016699,2]
[403026397,1769081432585,-300.63297194,0.00016699,2]
[403026398,1769081432594,-500.0,0.00016699,2]
[403026399,1769081432602,-500.0,0.00016699,2]
[403026400,1769081432611,-500.0,0.00016699,2]
[403026401,1769081432620,-500.0,0.00016699,2]
[403026402,1769081432629,-190.96471037,0.00016699,2]
[403026403,1769081432640,-309.03528963,0.00016699,2]
[403026404,1769081432649,-1631.58903882,0.000167,2]
[403026405,1769081432661,-869.56,0.000167,2]
[403026413,1769081437896,-500.0,0.00016699,2]
[403026414,1769081437906,-84.09011986,0.00016699,2]
[403026415,1769081437919,-415.90988014,0.00016699,2]
[403026416,1769081437928,-500.0,0.00016699,2]
[403026417,1769081437938,-262.9537464,0.00016699,2]
[403026418,1769081437950,-237.0462536,0.00016699,2]
[403026419,1769081437960,-500.0,0.00016699,2]
[403026420,1769081437969,-500.0,0.00016699,2]
[403026421,1769081437979,-500.0,0.00016699,2]
[403026422,1769081437988,-500.0,0.00016699,2]
[403026423,1769081437999,-372.77016581,0.00016699,2]
[403026424,1769081438011,-127.22983419,0.00016699,2]
[403026425,1769081438020,-281.64638394,0.00016699,2]
[403026426,1769081438052,-218.35361606,0.00016699,2]
[403026427,1769081438062,-476.92638394,0.00016699,2]
[403026428,1769081438073,-23.07361606,0.00016699,2]
[403026429,1769081438083,-500.0,0.00016699,2]
[403026430,1769081438093,-364.38078305,0.00016699,2]
[403026431,1769081438103,-500.0,0.00016699,2]
[403026432,1769081438113,-500.0,0.00016699,2]
[403026433,1769081438123,-500.0,0.00016699,2]
[403026434,1769081438132,-500.0,0.00016699,2]
[403026435,1769081438142,-500.0,0.00016699,2]
[403026436,1769081438152,-500.0,0.00016699,2]
[403026437,1769081438162,-500.0,0.00016699,2]
[403026439,1769081438172,-500.0,0.00016699,2]
[403026441,1769081438182,-500.0,0.00016699,2]
[403026443,1769081438192,-500.0,0.00016699,2]
[403026445,1769081438202,-500.0,0.00016699,2]
[403026447,1769081438211,-500.0,0.00016699,2]
[403026449,1769081438221,-500.0,0.00016699,2]
[403026451,1769081438230,-500.0,0.00016699,2]
[403026453,1769081438240,-500.0,0.00016699,2]
[403026455,1769081438250,-500.0,0.00016699,2]
[403026457,1769081438260,-500.0,0.00016699,2]
[403026459,1769081438269,-500.0,0.00016699,2]
[403026461,1769081438279,-291.27438596,0.00016699,2]
[403026463,1769081438288,-500.0,0.00016699,2]
[403026465,1769081438298,-500.0,0.00016699,2]
[403026467,1769081438307,-6607.10892311,0.000167,2]
[403026471,1769081438332,-913978.26767847,0.000167,2]
[403026473,1769081438342,-250.0,0.00016796,2]
[403026475,1769081438352,-1000.0,0.00016797,2]
[403026477,1769081438362,-1656.655,0.00016797,2]
[403026479,1769081438372,-457.22,0.000168,2]
[403026482,1769081438382,-364.96851402,0.000168,2]
[403026484,1769081438392,-9070.59538629,0.0001683,2]
[403026486,1769081438401,-783.348,0.00016895,2]
[403026488,1769081438412,-1603.17323849,0.00016896,5]
[403026490,1769081438421,-500.0,0.00016896,2]
[403026492,1769081438432,-946.34,0.00016896,2]
[403026494,1769081438441,-500.0,0.00016896,2]
[403026496,1769081438451,-500.0,0.00016896,2]
[403026498,1769081438461,-500.0,0.00016896,2]
[403026500,1769081438471,-500.0,0.00016896,2]
[403026502,1769081438481,-500.0,0.00016896,2]
[403026504,1769081438490,-500.0,0.00016896,2]
[403026506,1769081438500,-540.08705783,0.00016896,2]
[403026509,1769081438509,-280.0,0.00016896,2]
[403026511,1769081438519,-217.98,0.00016896,2]
[403026513,1769081438529,-500.0,0.00016896,2]
[403026515,1769081438538,-516.50754003,0.00016896,2]
[403026517,1769081438549,-500.0,0.00016896,2]
[403026519,1769081438558,-500.0,0.00016896,2]
[403026521,1769081438568,-500.0,0.00016896,2]
[403026523,1769081438578,-368.70990999,0.00016896,2]
[403026525,1769081438588,-596.95186764,0.00016896,2]
[403026527,1769081438598,-1700.0,0.000169,6]
[403026529,1769081438607,-9670.03360501,0.000169,2]
[403026532,1769081438618,-9070.59538629,0.00016964,2]
[403026534,1769081438628,-250.0,0.00017,2]
[403026536,1769081438638,-9670.03360501,0.00017013,2]
[403026538,1769081438648,-500.0,0.00017041,2]
[403026540,1769081438657,-500.0,0.00017041,2]
[403026542,1769081438667,-342.1996177,0.00017041,2]
[403026544,1769081438677,-500.0,0.00017041,2]
[403026546,1769081438687,-500.0,0.00017041,2]
[403026547,1769081438697,-500.0,0.00017041,2]
[403026549,1769081438706,-500.0,0.00017041,2]
[403026551,1769081438717,-9070.59538629,0.00017097,2]
[403026552,1769081438727,-9670.03360501,0.00017127,2]
[403026553,1769081438736,-946.34,0.0001717,2]
[403026554,1769081438746,-9070.59538629,0.00017231,2]
[403026555,1769081438756,-9670.03360501,0.0001724,2]
[403026556,1769081438766,-1043.0,0.00017257,2]
[403026557,1769081438776,-202.55257861,0.00017298,2]
[403026558,1769081438787,-9670.03360501,0.00017354,2]
[403026559,1769081438797,-9070.59538629,0.00017365,2]
[403026560,1769081438808,-946.34,0.00017444,2]
[403026561,1769081438820,-9670.03360501,0.00017467,2]
[403026562,1769081438830,-9070.59538629,0.00017499,2]
[403026563,1769081438840,-3400.0,0.000175,6]
[403026564,1769081438851,-9670.03360501,0.00017581,2]
[403026565,1769081438861,-5100.0,0.000176,6]
[403026566,1769081438872,-1926.4181119,0.00017622,2]
[403026567,1769081438883,-9070.59538629,0.00017632,2]
[403026568,1769081438893,-500.0,0.00017673,2]
[403026569,1769081438903,-500.0,0.00017673,2]
[403026570,1769081438916,-500.67754118,0.00017673,2]
[403026571,1769081438926,-500.0,0.00017673,2]
[403026572,1769081438936,-500.0,0.00017673,2]
[403026573,1769081438946,-500.0,0.00017673,2]
[403026574,1769081438956,-502.19021569,0.00017673,2]
[403026575,1769081438967,-343.65136961,0.00017673,2]
[403026576,1769081438978,-500.0,0.00017673,2]
[403026577,1769081438988,-500.0,0.00017673,2]
[403026578,1769081438999,-500.0,0.00017673,2]
[403026579,1769081439010,-9670.03360501,0.00017694,2]
[403026580,1769081439020,-6900.0,0.000177,6]
[403026581,1769081439032,-946.34,0.00017718,2]
[403026582,1769081439042,-7387.42221848,0.0001775,2]
[403026583,1769081439053,-9070.59538629,0.00017766,2]
[403026584,1769081439065,-8600.0,0.000178,6]
[403026585,1769081439076,-9670.03360501,0.00017808,2]
[403026586,1769081439092,-1000.32393849,0.0001786,2]
[403026587,1769081439109,-1700.0,0.000179,6]
[403026588,1769081439120,-193.2322498,0.000179,3]
[403026589,1769081439132,-202.55257861,0.000179,2]
[403026590,1769081439143,-9070.59538629,0.000179,2]
[403026591,1769081439154,-439.88445026,0.000179,2]
[403026592,1769081439167,-153.77419055,0.000179,2]
[403026593,1769081439180,-3671.42970232,0.000179,2]
[403026594,1769081439191,-9670.03360501,0.00017921,2]
[403026595,1769081439203,-204.98273767,0.00017973,2]
[403026596,1769081439214,-151.0,0.00017989,2]
[403026597,1769081439225,-151.0,0.00017989,2]
[403026598,1769081439236,-151.0,0.00017989,2]
[403026599,1769081439247,-151.0,0.00017989,2]
[403026600,1769081439258,-151.0,0.00017989,2]
[403026601,1769081439268,-151.0,0.00017989,2]
[403026602,1769081439279,-151.0,0.00017989,2]
[403026603,1769081439289,-151.0,0.00017989,2]
[403026604,1769081439299,-1926.4181119,0.0001799,2]
[403026605,1769081439309,-1926.4181119,0.0001799,2]
[403026606,1769081439320,-946.34,0.00017992,2]
[403026607,1769081439330,-300.0,0.00017999,2]
[403026608,1769081439340,-150.0,0.00017999,2]
[403026609,1769081439350,-150.0,0.00017999,2]
[403026610,1769081439360,-262.47695941,0.00017999,2]
[403026611,1769081439371,-500.0,0.00017999,2]
[403026612,1769081439381,-500.0,0.00017999,2]
[403026613,1769081439391,-501.36316603,0.00017999,2]
[403026614,1769081439402,-222.73534952,0.00017999,2]
[403026615,1769081439416,-3251355.4258642,0.00018,2]
[403026616,1769081439434,-10461.40256878,0.00018,2]
[403026619,1769081440021,-5537.36,0.00018,2]
[403026620,1769081440076,-504.34826858,0.00018,2]
[403026621,1769081440088,-624.97280916,0.00018,2]
[403026622,1769081440188,-204870.97115324,0.00018,2]
[403026623,1769081440201,-49584.87029231,0.00018,2]
[403026624,1769081440346,-378.66,0.00018,2]
[403026625,1769081440359,-8656.00628775,0.00018,2]
[403026626,1769081440373,-8947.21879473,0.00018,2]
[403026627,1769081440387,-8943.78386462,0.00018,2]
[403026629,1769081440750,-9077.54866152,0.00018,2]
[403026630,1769081440769,-8943.84023489,0.00018,2]
[403026631,1769081440781,-10067.64992968,0.00018,2]
[403026632,1769081440792,-7677.89614001,0.00018,2]
[403026658,1769081446047,-277.89807597,0.00018,2]
[403026659,1769081446059,-808.866,0.00018,2]
[403026671,1769081574954,2764.21,0.00014351,2]
[403026715,1769082019660,-168.59194941,0.0001612,2]
[403026725,1769082086869,546.980804,0.00016039,2]
[403026736,1769082169570,-305.92509768,0.00016071,2]
[403026737,1769082172756,-267.8892582,0.00016071,2]
[403026738,1769082174305,-213.91614905,0.00016071,2]
[403026739,1769082177213,-154.69979071,0.00016071,2]
[403026746,1769082199574,-274.13970436,0.00016071,2]
[403026747,1769082199598,-155.18421542,0.00016096,2]
[403026748,1769082202319,-94.81578458,0.00016096,2]
[403026749,1769082202345,-65.97662089,0.0001612,2]
[403026798,1769082631936,-81.6914297,0.0001612,2]
[403026799,1769082631946,-250.0,0.0001621,2]
[403026800,1769082631955,-171.25216261,0.00016299,2]
[403026801,1769082631964,-218.76593489,0.00016338,2]
[403026802,1769082631974,-150.0,0.00016361,2]
[403026803,1769082631983,-300.0,0.00016398,2]
[403026804,1769082631992,-260.9057747,0.00016398,2]
[403026805,1769082632003,-939.0942253,0.00016398,2]
[403026806,1769082632016,-500.0,0.00016399,2]
[403026807,1769082632025,-226.0,0.00016399,2]
[403026808,1769082632035,-500.0,0.00016399,2]
[403026809,1769082632044,-500.0,0.00016399,2]
[403026810,1769082632053,-500.0,0.00016399,2]
[403026811,1769082632063,-241.50323656,0.00016399,2]
[403026812,1769082632109,-258.49676344,0.00016399,2]
[403026813,1769082632119,-331.70385859,0.00016399,2]
[403026814,1769082632130,-168.29614141,0.00016399,2]
[403026815,1769082632139,-500.0,0.00016399,2]
[403026816,1769082632149,-500.0,0.00016399,2]
[403026817,1769082632158,-500.0,0.00016399,2]
[403026818,1769082632168,-500.0,0.00016399,2]
[403026819,1769082632177,-500.0,0.00016399,2]
[403026820,1769082632186,-500.0,0.00016399,2]
[403026821,1769082632196,-201.33168182,0.00016399,2]
[403026822,1769082632208,-500.0,0.00016399,2]
[403026823,1769082632218,-500.0,0.00016399,2]
[403026824,1769082632228,-18.04570061,0.00016399,2]
[403026825,1769082632240,-481.95429939,0.00016399,2]
[403026826,1769082632251,-500.0,0.00016399,2]
[403026828,1769082632260,-210.09423752,0.00016399,2]
[403026831,1769082632279,-289.90576248,0.00016399,2]
[403026833,1769082632289,-500.0,0.00016399,2]
[403026835,1769082632299,-500.0,0.00016399,2]
[403026836,1769082632308,-500.0,0.00016399,2]
[403026839,1769082632317,-500.0,0.00016399,2]
[403026841,1769082632326,-500.0,0.00016399,2]
[403026843,1769082632335,-500.0,0.00016399,2]
[403026845,1769082632344,-500.0,0.00016399,2]
[403026847,1769082632353,-500.0,0.00016399,2]
[403026849,1769082632362,-500.0,0.00016399,2]
[403026851,1769082632372,-500.0,0.00016399,2]
[403026853,1769082632381,-500.0,0.00016399,2]
[403026855,1769082632390,-500.0,0.00016399,2]
[403026858,1769082632400,-500.0,0.00016399,2]
[403026861,1769082632409,-500.0,0.00016399,2]
[403026864,1769082632419,-500.0,0.00016399,2]
[403026866,1769082632429,-500.0,0.00016399,2]
[403026868,1769082632438,-500.0,0.00016399,2]
[403026870,1769082632447,-500.0,0.00016399,2]
[403026872,1769082632456,-500.0,0.00016399,2]
[403026874,1769082632467,-500.0,0.00016399,2]
[403026876,1769082632478,-500.0,0.00016399,2]
[403026877,1769082632487,-500.0,0.00016399,2]
[403026878,1769082632497,-500.0,0.00016399,2]
[403026879,1769082632507,-519.95078835,0.00016399,2]
[403026880,1769082632517,-500.0,0.00016399,2]
[403026881,1769082632526,-500.0,0.00016399,2]
[403026882,1769082632535,-500.0,0.00016399,2]
[403026883,1769082632546,-500.0,0.00016399,2]
[403026884,1769082632555,-500.0,0.00016399,2]
[403026885,1769082632565,-500.0,0.00016399,2]
[403026886,1769082632574,-500.0,0.00016399,2]
[403026887,1769082632584,-500.0,0.00016399,2]
[403026888,1769082632592,-500.0,0.00016399,2]
[403026889,1769082632602,-500.0,0.00016399,2]
[403026890,1769082632611,-500.0,0.00016399,2]
[403026891,1769082632622,-500.0,0.00016399,2]
[403026892,1769082632635,-500.0,0.00016399,2]
[403026893,1769082632644,-500.0,0.00016399,2]
[403026894,1769082632655,-600.0,0.00016399,2]
[403026895,1769082632664,-500.0,0.00016399,2]
[403026896,1769082632675,-500.0,0.00016399,2]
[403026897,1769082632685,-500.0,0.00016399,2]
[403026898,1769082632694,-500.0,0.00016399,2]
[403026899,1769082632704,-500.0,0.00016399,2]
[403026900,1769082632713,-150.0,0.00016399,2]
[403026901,1769082632722,-1148.91,0.00016399,2]
[403026902,1769082632732,-457.22,0.000164,2]
[403026903,1769082632742,-3371.98392359,0.000164,2]
[403026904,1769082632759,-1849.13491146,0.000164,2]
[403026905,1769082632958,-30132.01071226,0.000164,2]
[403026906,1769082632971,-292.97700002,0.000164,2]
[403026914,1769082638048,-597.05296577,0.000164,2]
[403026915,1769082638062,-963756.8404869,0.000164,2]
[403026916,1769082638072,-500.0,0.00016438,2]
[403026917,1769082638083,-500.0,0.00016438,2]
[403026918,1769082638094,-236.56323015,0.00016438,2]
[403026919,1769082638105,-500.0,0.00016438,2]
[403026920,1769082638120,-500.0,0.00016438,2]
[403026921,1769082638131,-500.0,0.00016438,2]
[403026922,1769082638142,-500.0,0.00016438,2]
[403026923,1769082638153,-500.0,0.00016438,2]
[403026924,1769082638164,-500.0,0.00016438,2]
[403026925,1769082638175,-500.0,0.00016438,2]
[403026926,1769082638186,-500.0,0.00016438,2]
[403026927,1769082638197,-500.0,0.00016438,2]
[403026928,1769082638208,-500.0,0.00016438,2]
[403026929,1769082638219,-500.0,0.00016438,2]
[403026930,1769082638229,-500.0,0.00016438,2]
[403026931,1769082638239,-500.0,0.00016438,2]
[403026932,1769082638249,-500.0,0.00016438,2]
[403026933,1769082638259,-165.32,0.0001644,2]
[403026934,1769082638269,-396.8291495,0.000165,2]
[403026935,1769082638279,-10160.6278583,0.000165,2]
[403026936,1769082638290,-9729.00816753,0.000165,2]
[403026937,1769082638302,-2070.6252,0.000165,2]
[403026938,1769082638315,-415.0,0.0001659,2]
[403026939,1769082638326,-500.0,0.0001659,2]
[403026940,1769082638336,-151.0,0.0001659,2]
[403026941,1769082638346,-151.0,0.0001659,2]
[403026942,1769082638357,-151.0,0.0001659,2]
[403026943,1769082638367,-151.0,0.0001659,2]
[403026945,1769082638377,-151.0,0.0001659,2]
[403026947,1769082638387,-151.0,0.0001659,2]
[403026949,1769082638398,-151.0,0.0001659,2]
[403026950,1769082638408,-151.0,0.0001659,2]
[403026951,1769082638417,-151.0,0.0001659,2]
[403026952,1769082638428,-166.66,0.00016591,2]
[403026953,1769082638439,-1603.17323849,0.00016599,5]
[403026954,1769082638450,-828.288,0.00016599,2]
[403026955,1769082638460,-540.08705783,0.00016599,2]
[403026956,1769082638472,-217.98,0.00016599,2]
[403026957,1769082638482,-500.0,0.00016599,2]
[403026958,1769082638492,-500.0,0.00016599,2]
[403026959,1769082638502,-500.0,0.00016599,2]
[403026960,1769082638516,-500.0,0.00016599,2]
[403026961,1769082638526,-368.70990999,0.00016599,2]
[403026962,1769082638537,-1000.0,0.000166,2]
[403026963,1769082638548,-10160.62785821,0.00016656,2]
[403026964,1769082638558,-9729.00816749,0.00016656,2]
[403026965,1769082638569,-1148.91,0.00016673,2]
[403026966,1769082638579,-200.0,0.00016735,2]
[403026967,1769082638589,-1700.0,0.000168,6]
[403026968,1769082638600,-10160.62785821,0.00016811,2]
[403026969,1769082638610,-9729.00816749,0.00016811,2]
[403026970,1769082638620,-7769.80015434,0.00016859,2]
[403026971,1769082638630,-1043.0,0.00016892,2]
[403026972,1769082638640,-500.0,0.00016896,2]
[403026973,1769082638650,-500.0,0.00016896,2]
[403026974,1769082638660,-500.0,0.00016896,2]
[403026975,1769082638670,-500.0,0.00016896,2]
[403026976,1769082638680,-500.0,0.00016896,2]
[403026977,1769082638691,-500.0,0.00016896,2]
[403026978,1769082638704,-500.0,0.00016896,2]
[403026979,1769082638715,-500.0,0.00016896,2]
[403026980,1769082638725,-500.0,0.00016896,2]
[403026981,1769082638735,-500.0,0.00016896,2]
[403026982,1769082638745,-500.0,0.00016896,2]
[403026983,1769082638755,-596.95186764,0.00016896,2]
[403026984,1769082638765,-500.0,0.00016896,2]
[403026985,1769082638775,-500.0,0.00016896,2]
[403026986,1769082638785,-342.1996177,0.00016896,2]
[403026987,1769082638796,-3400.0,0.000169,6]
[403026988,1769082638806,-1148.91,0.00016947,2]
[403026989,1769082638816,-10160.62785821,0.00016967,2]
[403026990,1769082638826,-9729.00816749,0.00016967,2]
[403026991,1769082638836,-459.58,0.00016986,2]
[403026992,1769082638847,-173.0,0.00017016,2]
[403026993,1769082638857,-205.71,0.00017061,2]
[403026994,1769082638867,-218.76593487,0.00017119,2]
[403026995,1769082638877,-10160.62785821,0.00017122,2]
[403026996,1769082638887,-9729.00816749,0.00017122,2]
[403026997,1769082638900,-166.66,0.00017139,2]
[403026998,1769082638910,-1148.91,0.00017221,2]
[403026999,1769082638920,-10160.62785821,0.00017278,2]
[403027000,1769082638930,-9729.00816749,0.00017278,2]
[403027001,1769082638940,-500.0,0.0001734,2]
[403027002,1769082638949,-1926.4181119,0.00017423,2]
[403027003,1769082638959,-10160.62785821,0.00017433,2]
[403027004,1769082638969,-9729.00816749,0.00017433,2]
[403027005,1769082638979,-1148.91,0.00017495,2]
[403027006,1769082638989,-10160.62785821,0.00017589,2]
[403027007,1769082638999,-9729.00816749,0.00017589,2]
[403027008,1769082639009,-5100.0,0.000176,6]
[403027009,1769082639019,-459.58,0.00017622,2]
[403027010,1769082639028,-500.0,0.00017673,2]
[403027011,1769082639038,-267.41486489,0.00017673,2]
[403027012,1769082639048,-500.0,0.00017673,2]
[403027013,1769082639057,-343.65136961,0.00017673,2]
[403027014,1769082639068,-500.0,0.00017673,2]
[403027015,1769082639077,-500.0,0.00017673,2]
[403027016,1769082639089,-500.67754118,0.00017673,2]
[403027017,1769082639099,-500.0,0.00017673,2]
[403027018,1769082639109,-500.0,0.00017673,2]
[403027019,1769082639119,-500.0,0.00017673,2]
[403027020,1769082639130,-500.0,0.00017673,2]
[403027021,1769082639140,-166.66,0.00017687,2]
[403027022,1769082639150,-6900.0,0.000177,6]
[403027023,1769082639160,-195.0,0.00017732,2]
[403027024,1769082639601,-201.13374682,0.00017732,2]
[403027025,1769082639632,-600.0,0.00017732,2]
[403027026,1769082639642,-195.0,0.00017732,2]
[403027027,1769082639651,-250.0,0.00017732,2]
[403027028,1769082639660,-10160.62785821,0.00017744,2]
[403027029,1769082639669,-9729.00816749,0.00017744,2]
[403027030,1769082639678,-226.09995295,0.00017746,2]
[403027031,1769082639688,-398.86711749,0.00017746,2]
[403027032,1769082639697,-596.68135309,0.00017746,2]
[403027033,1769082639706,-807.3252,0.00017746,2]
[403027034,1769082639715,-1148.91,0.00017769,2]
[403027035,1769082639725,-8600.0,0.000178,6]
[403027036,1769082639734,-218.76593487,0.00017899,2]
[403027037,1769082639743,-4838.7187,0.000179,2]
[403027038,1769082639754,-10160.62785821,0.000179,2]
[403027039,1769082639764,-9729.00816749,0.000179,2]
[403027040,1769082639773,-1700.0,0.000179,6]
[403027041,1769082639782,-193.2322498,0.000179,3]
[403027042,1769082639792,-153.77419055,0.000179,2]
[403027043,1769082639801,-908.79943748,0.000179,2]
[403027044,1769082639811,-7021.76086564,0.000179,2]
[403027045,1769082639820,-439.88445026,0.000179,2]
[403027046,1769082639829,-420.0,0.00017921,2]
[403027047,1769082639839,-204.98273767,0.00017973,2]
[403027048,1769082639849,-1926.4181119,0.0001799,2]
[403027049,1769082639858,-1926.4181119,0.0001799,2]
[403027050,1769082639868,-9141.4220895,0.00017997,2]
[403027051,1769082639879,-629043.2645121,0.00017997,2]
[403027052,1769082639892,-249.22843217,0.00017999,2]
[403027053,1769082639902,-155.421,0.00017999,2]
[403027054,1769082639911,-198.83020825,0.00017999,2]
[403027055,1769082639921,-300.0,0.00017999,2]
[403027056,1769082639930,-1203.7821074,0.00017999,2]
[403027057,1769082639939,-150.0,0.00017999,2]
[403027058,1769082639949,-275916.6874103,0.00017999,2]
[403027059,1769082639958,-2624022.75247549,0.00018,2]
[403027062,1769082639985,-33329.90995989,0.00018,2]
[403027063,1769082640002,-281.55,0.00018,2]
[403027064,1769082640013,-2145.28476663,0.00018,2]
[403027065,1769082640024,-574.0,0.00018,2]
[403027066,1769082640035,-314.06540004,0.00018,2]
[403027068,1769082640062,-696.05560694,0.00018,2]
[403027070,1769082640075,-3375.5170958,0.00018,2]
[403027072,1769082640085,-1425.17828066,0.00018,2]
[403027073,1769082640096,-1691.06524236,0.00018,2]
[403027074,1769082640112,-18200.89889173,0.00018,2]
[403027075,1769082640123,-11345.34622596,0.00018,2]
[403027076,1769082640135,-3411.18961259,0.00018,2]
[403027077,1769082640146,-481.49447996,0.00018,2]
[403027078,1769082640158,-3076.73606805,0.00018,2]
[403027079,1769082640393,-151.0,0.00016808,2]
[403027080,1769082640403,-8489.93369751,0.00018,2]
[403027081,1769082640637,-195143.62230471,0.00018,2]
[403027116,1769082643398,-3434.276362,0.00018,2]
[403027117,1769082643452,-1093.41448108,0.00018,2]
[403027118,1769082643464,-1840.26016525,0.00018,2]
[403027122,1769082646165,-151.0,0.00016808,2]
[403027123,1769082646174,-487176.49581838,0.00018,2]
[403027124,1769082646218,-457.32192403,0.00018,2]
[403027129,1769082699439,800.0,0.000159,5]
[403027135,1769082729232,600.0,0.000159,5]
[403027136,1769082737105,1603.17323849,0.00016498,5]
[403027206,1769083324964,154.45,0.00012964,2]
[403027220,1769083493665,333.45,0.00016023,2]
[403027223,1769083547633,171.99,0.00015946,2]
[403027228,1769083644854,1700.0,0.000159,5]
[403027241,1769083832196,-500.0,0.00016167,2]
[403027242,1769083832206,-195.0,0.00016167,2]
[403027243,1769083832215,-1489.92,0.00016167,2]
[403027244,1769083832224,-1918.94,0.00016258,2]
[403027245,1769083832234,-200.0,0.00016289,2]
[403027246,1769083832244,-1200.0,0.00016298,2]
[403027247,1769083832254,-300.0,0.00016298,2]
[403027248,1769083832263,-550.0,0.00016299,2]
[403027249,1769083832272,-1580.96751874,0.00016299,2]
[403027250,1769083832282,-33572.04385885,0.000163,2]
[403027251,1769083832293,-97626.24854115,0.000163,2]
[403027252,1769083832303,-1500.0,0.00016388,2]
[403027253,1769083832313,-5268.17964723,0.00016399,2]
[403027254,1769083832322,-2070.6252,0.00016399,2]
[403027255,1769083832331,-500.0,0.00016399,2]
[403027256,1769083832341,-500.0,0.00016399,2]
[403027257,1769083832350,-500.0,0.00016399,2]
[403027258,1769083832359,-500.0,0.00016399,2]
[403027259,1769083832368,-396.8291495,0.000164,2]
[403027260,1769083832377,-4554.0788869,0.00016428,2]
[403027261,1769083832386,-1379.515,0.00016438,2]
[403027262,1769083832395,-500.0,0.00016489,2]
[403027263,1769083832405,-415.0,0.00016489,2]
[403027264,1769083832415,-151.0,0.00016489,2]
[403027265,1769083832424,-151.0,0.00016489,2]
[403027266,1769083832435,-151.0,0.00016489,2]
[403027267,1769083832445,-151.0,0.00016489,2]
[403027268,1769083832454,-151.0,0.00016489,2]
[403027269,1769083832463,-151.0,0.00016489,2]
[403027270,1769083832472,-151.0,0.00016489,2]
[403027271,1769083832481,-151.0,0.00016489,2]
[403027272,1769083832491,-151.0,0.00016489,2]